{"text_format":"3","workbook":"xlsx","n_sheets":2,"sheets":["list","data"],"not_rendered":{"defined_names":8},"read":"whole","date_system":"1900"}

{"sheet":"list","index":0,"n_rows":72,"n_cols":17,"rows_kept":72}
["№","Название ОУ","Фамилия","Имя","Имя","Отчество","Отчество","Класс","Класс участия","Первичный балл","Добавлено по итогам апелляций","Итоговый балл","Макс. Балл","Статус","Призер регионального / республиканского этапа прошлого года","Учитель","Место работы учителя"]
[1,"МБОУ \"СОШ №1\"","Махмудов","Али Акбар","АА","Сеймурович",{"$f":"LEFT(F2)","v":"С"},4,4,66,null,66,68,"победитель",null,"Городова Людмила Георгиевна","МБОУ \"СОШ №1\" г. Мензелинска"]
[2,"МБОУ \"СОШ №2\" г. Мензелинска РТ","Мингазов","Наиль",{"$f":"LEFT(D3)","v":"Н"},"Хокимзянович",{"$f":"LEFT(F3)","v":"Х"},4,4,9,null,9,68,"участник",null,"Кириллова Виктория Валерьевна","МБОУ \"СОШ №2\" г. Мензелинска"]
[3,"МБОУ \"СОШ №2\" г. Мензелинска РТ","Шакирова","Ралина",{"$f":"LEFT(D4)","v":"Р"},"Ильгамовна","И",4,4,9,null,9,68,"участник",null,"Кириллова Виктория Валерьевна","МБОУ \"СОШ №2\" г. Мензелинска"]
[4,"МБОУ \"СОШ №3\"","Зиннатов","Ильдан",{"$f":"LEFT(D5)","v":"И"},"Ильгизович","И",4,4,8,null,8,68,"участник",null,"Губайдуллина Оксана Александровна","МБОУ \"СОШ №3\" г. Мензелинска"]
[5,"МБОУ \"СОШ №3\"","Назаров","Артём",{"$f":"LEFT(D6)","v":"А"},"Михайлович","М",4,4,6,null,6,68,"участник",null,"Губайдуллина Оксана Александровна","МБОУ \"СОШ №3\" г. Мензелинска"]
[6,"МБОУ \"СОШ №3\"","Рогут","Артем",{"$f":"LEFT(D7)","v":"А"},"Андреевич","А",4,4,13,null,13,68,"участник",null,"Губайдуллина Оксана Александровна","МБОУ \"СОШ №3\" г. Мензелинска"]
[7,"МБОУ \"СОШ №3\"","Батенева","Евгения",{"$f":"LEFT(D8)","v":"Е"},"Юрьевна","Ю",4,4,11,null,11,68,"участник",null,"Губайдуллина Оксана Александровна","МБОУ \"СОШ №3\" г. Мензелинска"]
[8,"МБОУ \"СОШ №3\"","Биктимиров","Тимур",{"$f":"LEFT(D9)","v":"Т"},"Марселевич","М",4,4,9,null,9,68,"участник",null,"Губайдуллина Оксана Александровна","МБОУ \"СОШ №3\" г. Мензелинска"]
[9,"МБОУ \"СОШ №3\"","Петрова","Александра",{"$f":"LEFT(D10)","v":"А"},"Алексеевна","А",4,4,10,null,10,68,"участник",null,"Кукаркина Дарья Евгеньевна","МБОУ \"СОШ №3\" г. Мензелинска"]
[10,"МБОУ \"Кузембетьевская СОШ им.Х.Г.Хусаинова\"","Ибрагимова","Самира",{"$f":"LEFT(D11)","v":"С"},"Наилевна","Н",4,4,6,null,6,68,"участник",null,"Валиева Рамиля Рустамовна","Кузембетьевская СОШ"]
[11,"МБОУ \"Матвеевская ООШ","Латипова","Алина",{"$f":"LEFT(D12)","v":"А"},"Кабировна","К",4,4,9,null,9,68,"участник",null,"Хакимова Алсу Муллануровна","МБОУ \"Матвеевская ООШ\""]
[12,"МБОУ \"Гимназия\" г.Мензелинска РТ","Салихов","Самат",{"$f":"LEFT(D13)","v":"С"},"Ильнурович","И",4,4,11,null,11,68,"участник",null,"Абулханова Ильмира Васильевна","МБОУ \"Гимназия\" г.Мензелинска РТ"]
[13,"МБОУ \"Гимназия\" г.Мензелинска РТ","Муртазин","Данияр",{"$f":"LEFT(D14)","v":"Д"},"Римович","Р",4,4,15,null,15,68,"участник",null,"Ахмедова Наргиз Чингиз кызы","МБОУ \"Гимназия\" г.Мензелинска РТ"]
[14,"МБОУ \"Гимназия\" г.Мензелинска РТ","Валиуллин","Ильяр",{"$f":"LEFT(D15)","v":"И"},"Рамилевич","Р",4,4,9,null,9,68,"участник",null,"Ахмедова Наргиз Чингиз кызы","МБОУ \"Гимназия\" г.Мензелинска РТ"]
[15,"МБОУ \"Гимназия\" г.Мензелинска РТ","Гилязев","Тимур",{"$f":"LEFT(D16)","v":"Т"},"Рустамович","Р",4,4,14,null,14,68,"участник",null,"Ахмедова Наргиз Чингиз кызы","МБОУ \"Гимназия\" г.Мензелинска РТ"]
[16,"МБОУ \"Гимназия\" г.Мензелинска РТ","Фавзетдинов","Самир",{"$f":"LEFT(D17)","v":"С"},"Артурович","А",4,4,7,null,7,68,"участник",null,"Ахмедова Наргиз Чингиз кызы","МБОУ \"Гимназия\" г.Мензелинска РТ"]
[17,"МБОУ \"СОШ №1\"","Пономарева","Ульяна",{"$f":"LEFT(D18)","v":"У"},"Антоновна","А",5,5,23,null,23,60,"участник",null,"Городова Людмила Георгиевна","МБОУ \"СОШ №1\" г. Мензелинска"]
[18,"МБОУ \"СОШ №1\"","Шакирзянова","Сагдия",{"$f":"LEFT(D19)","v":"С"},"Айдаровна","А",5,5,12,null,12,60,"участник",null,"Джайнакова Т.В.","МБОУ \"СОШ №1\" г. Мензелинска"]
[19,"МБОУ \"СОШ №2\" г. Мензелинска РТ","Лебедев","Даниель",{"$f":"LEFT(D20)","v":"Д"},"Станиславович","С",5,5,8,null,8,60,"участник",null,"Кириллова Виктория Валерьевна","МБОУ \"СОШ №2\" г. Мензелинска"]
[20,"МБОУ \"СОШ №2\" г. Мензелинска РТ","Чигвинцев","Даниил",{"$f":"LEFT(D21)","v":"Д"},"Юрьевич","Ю",5,5,16,null,16,60,"участник",null,"Кириллова Виктория Валерьевна","МБОУ \"СОШ №2\" г. Мензелинска"]
[21,"МБОУ \"СОШ №2\" г. Мензелинска РТ","Плесняков","Глеб",{"$f":"LEFT(D22)","v":"Г"},"Алексеевич","А",5,5,10,null,10,60,"участник",null,"Кириллова Виктория Валерьевна","МБОУ \"СОШ №2\" г. Мензелинска"]
[22,"МБОУ \"СОШ №2\" г. Мензелинска РТ","Ахметов","Данияр",{"$f":"LEFT(D23)","v":"Д"},"Сиреневич","С",5,5,10,null,10,60,"участник",null,"Гарипова Светлана Анатольевна","МБОУ \"СОШ №2\" г. Мензелинска"]
[23,"МБОУ \"СОШ №3\"","Сахапов","Амир",{"$f":"LEFT(D24)","v":"А"},"Артурович","А",5,5,33,null,33,60,"призер",null,"Губайдуллина Оксана Александровна","МБОУ \"СОШ №3\" г. Мензелинска"]
[24,"МБОУ \"СОШ №3\"","Фазлиддинзода","Озарахш",{"$f":"LEFT(D25)","v":"О"},null,"",5,5,32,null,32,60,"призер",null,"Гилязетдинова Гульшат Илфатовна","МБОУ \"СОШ №3\" г. Мензелинска"]
[25,"МБОУ \"СОШ №3\"","Газизов","Карим",{"$f":"LEFT(D26)","v":"К"},"Камилевич","К",5,5,32,null,32,60,"призер",null,"Гилязетдинова Гульшат Илфатовна","МБОУ \"СОШ №3\" г. Мензелинска"]
[26,"МБОУ \"Кузембетьевская СОШ им.Х.Г.Хусаинова\"","Кузьмин","Альберт",{"$f":"LEFT(D27)","v":"А"},"Вячеславович","В",5,5,12,null,12,60,"участник",null,"Валиева Рамиля Рустамовна","Кузембетьевская СОШ"]
[27,"МБОУ \"Гимназия\" г.Мензелинска РТ","Камашева","Амина",{"$f":"LEFT(D28)","v":"А"},"Евгеньевна","Е",5,5,19,null,19,60,"участник",null,"Абулханова Ильмира Васильевна","МБОУ \"Гимназия\" г.Мензелинска РТ"]
[28,"МБОУ \"Гимназия\" г.Мензелинска РТ","Ризатдинов","Ислам",{"$f":"LEFT(D29)","v":"И"},"Ильгизарович","И",5,5,31,null,31,60,"призер",null,"Нуриева Гузель Флюровна","МБОУ \"Гимназия\" г.Мензелинска РТ"]
[29,"МБОУ \"Подгорнобайларская ООШ\"","Марданова","Виолетта",{"$f":"LEFT(D30)","v":"В"},"Олеговна","О",5,5,12,null,12,60,"участник",null,"Бадриев Марат Фаизович","МБОУ\"Подгорнобайларская ООШ\" Мензелинского муниципального района РТ"]
[30,"МБОУ \"СОШ №1\"","Валеев","Никита",{"$f":"LEFT(D31)","v":"Н"},"Валерьевич","В",6,6,19,null,19,60,"участник",null,"Гарифзянова Венера Флюсовна","МБОУ \"СОШ №1\" г. Мензелинска"]
[31,"МБОУ \"СОШ №1\"","Гусманов","Ильяс",{"$f":"LEFT(D32)","v":"И"},"Данисович","Д",6,6,31,null,31,60,"призер",null,"Джайнакова Татьяна Витальевна","МБОУ \"СОШ №1\" г. Мензелинска"]
[32,"МБОУ \"СОШ №3\"","Сергеева","Аида",{"$f":"LEFT(D33)","v":"А"},"Эдуардовна","Э",6,6,31,null,31,60,"призер",null,"Шамсуллина Наталья Георгиевна","МБОУ \"СОШ №3\" г. Мензелинска"]
[33,"МБОУ \"СОШ №3\"","Искандирова","Лейла",{"$f":"LEFT(D34)","v":"Л"},"Дмитриевна","Д",6,6,32,null,32,60,"призер",null,"Шамсуллина Наталья Георгиевна","МБОУ \"СОШ №3\" г. Мензелинска"]
[34,"МБОУ \"Калтаковская СОШ\"","Сабитова","Зарина",{"$f":"LEFT(D35)","v":"З"},"Ильдаровна","И",6,6,5,null,5,60,"участник",null,"Салимова Инна Алексеевна","МБОУ \"Калтаковская СОШ\""]
[35,"МБОУ \"Калтаковская СОШ\"","Салимов","Роман",{"$f":"LEFT(D36)","v":"Р"},"Климентович","К",6,6,9,null,9,60,"участник",null,"Салимова Инна Алексеевна","МБОУ \"Калтаковская СОШ\""]
[36,"МБОУ \"Гимназия\" г.Мензелинска РТ","Давлетшина","Самира",{"$f":"LEFT(D37)","v":"С"},"Динаровна","Д",6,6,23,null,23,60,"участник",null,"Абулханова Ильмира Васильевна","МБОУ \"Гимназия\" г.Мензелинска РТ"]
[37,"МБОУ \"Гимназия\" г.Мензелинска РТ","Талипова","Язиля",{"$f":"LEFT(D38)","v":"Я"},"Ренатовна","Р",6,6,32,null,32,60,"призер",null,"Абулханова Ильмира Васильевна","МБОУ \"Гимназия\" г.Мензелинска РТ"]
[38,"МБОУ \"Татарскомушугинская СОШ им.К.А.Смирновой\"","Хаертдинова","Адиля",{"$f":"LEFT(D39)","v":"А"},"Айнуровна","А",6,6,13,null,13,60,"участник",null,"Камалова Ирина Федоровна","МБОУ \"Татарскомушугинская СОШ имени К.А.Смирновой\""]
[39,"МБОУ \"Урусовская ООШ имени Р.Закирова\"","Ковалёв","Константин",{"$f":"LEFT(D40)","v":"К"},"Максимович","М",6,6,7,null,7,60,"участник",null,"Талипова Танзиля Хамадулловна","МБОУ \"Урусовская ООШ имени Р.Закирова\""]
[40,"МБОУ \"Верхнетакерменская ООШ им. Г.Сабитова\"","Делфенуров","Касыйм",{"$f":"LEFT(D41)","v":"К"},"Салихович","С",6,6,31,null,31,60,"призер",null,"Шайдуллина Алина Мансуровна","МБОУ \"Верхнетакерменская ООШ им. Г.Сабитова\""]
[41,"МБОУ \"СОШ №1\"","Гараев","Адель",{"$f":"LEFT(D42)","v":"А"},"Артемович","А",7,7,59,null,59,105,"призер",null,"Гарифзянова Венера Флюсовна","МБОУ \"СОШ №1\" г. Мензелинска"]
[42,"МБОУ \"СОШ №1\"","Ялаев","Вильдан",{"$f":"LEFT(D43)","v":"В"},"Рустемович","Р",7,7,19,null,19,105,"участник",null,"Джайнакова Татьяна Витальевна","МБОУ \"СОШ №1\" г. Мензелинска"]
[43,"МБОУ \"СОШ №2\" г. Мензелинска РТ","Коростина","Ариадна",{"$f":"LEFT(D44)","v":"А"},"Николаевна","Н",7,7,38,null,38,105,"участник",null,"Гарипова Светлана Анатольевна","МБОУ \"СОШ №2\" г. Мензелинска"]
[44,"МБОУ \"СОШ №3\"","Акимова","Элиза",{"$f":"LEFT(D45)","v":"Э"},"Эдуардовна","Э",7,7,53,null,53,105,"призер",null,"Овчинникова Гузелия Зямгетдиновна","МБОУ \"СОШ №3\" г. Мензелинска"]
[45,"МБОУ \"СОШ №3\"","Салахова","София",{"$f":"LEFT(D46)","v":"С"},"Евгеньевна","Е",7,7,53,null,53,105,"призер",null,"Гилязетдинова Гульшат Илфатовна","МБОУ \"СОШ №3\" г. Мензелинска"]
[46,"МБОУ \"СОШ №3\"","Федотов","Вильдан",{"$f":"LEFT(D47)","v":"В"},"Ильдарович","И",7,7,23,null,23,105,"участник",null,"Гилязетдинова Гульшат Илфатовна","МБОУ \"СОШ №3\" г. Мензелинска"]
[47,"МБОУ \"Кузембетьевская СОШ им.Х.Г.Хусаинова\"","Шакурова","Айзиля",{"$f":"LEFT(D48)","v":"А"},"Айратовна","А",7,7,11,null,11,105,"участник",null,"Валиева Рамиля Рустамовна","Кузембетьевская СОШ"]
[48,"МБОУ \"Гимназия\" г.Мензелинска РТ","Нурмехаметова","Малика",{"$f":"LEFT(D49)","v":"М"},"Ильгизовна","И",7,7,14,null,14,105,"участник",null,"Абулханова Ильмира Васильевна","МБОУ \"Гимназия\" г.Мензелинска РТ"]
[49,"МБОУ \"СОШ №1\"","Кукаркина","Анастасия",{"$f":"LEFT(D50)","v":"А"},"Рустямовна","Р",8,8,54,null,54,105,"призер",null,"Городова Людмила Георгиевна","МБОУ \"СОШ №1\" г. Мензелинска"]
[50,"МБОУ \"СОШ №2\" г. Мензелинска РТ","Липина","Евгения",{"$f":"LEFT(D51)","v":"Е"},"Евгеньевна","Е",8,8,37,null,37,105,"участник",null,"Кириллова Виктория Валерьевна","МБОУ \"СОШ №2\" г. Мензелинска"]
[51,"МБОУ \"СОШ №3\"","Вагизова","Азалия",{"$f":"LEFT(D52)","v":"А"},"Ильнуровна","И",8,8,59,null,59,105,"призер",null,"Шамсуллина Наталья Георгиевна","МБОУ \"СОШ №3\" г. Мензелинска"]
[52,"МБОУ \"СОШ №3\"","Хисамова","Аделя",{"$f":"LEFT(D53)","v":"А"},"Рустемовна","Р",8,8,52,null,52,105,"призер",null,"Шамсуллина Наталья Георгиевна","МБОУ \"СОШ №3\" г. Мензелинска"]
[53,"ГАПОУ \"Мензелинский педагогический колледж имени Мусы Джалиля\"","Новикова","Виктория",{"$f":"LEFT(D54)","v":"В"},"Денисовна","Д",8,8,15,null,15,105,"участник",null,"Александрова Лейсан Зуфаровна","МПК"]
[54,"МБОУ \"Кадряковская ООШ\"","Полушкина","Виктория",{"$f":"LEFT(D55)","v":"В"},"Артуровна","А",8,8,7,null,7,105,"участник",null,"Николаева Надежда Михайловна","МБОУ \"Кадряковская ООШ\""]
[55,"МБОУ \"Верхнетакерменская ООШ им. Г.Сабитова\"","Смолин","Муслим",{"$f":"LEFT(D56)","v":"М"},"Михайлович","М",8,8,24,null,24,105,"участник",null,"Шайдуллина Алина Мансуровна","МБОУ \"Верхнетакерменская ООШ\""]
[56,"МБОУ \"СОШ №1\"","Габдрахманова","Ильвина",{"$f":"LEFT(D57)","v":"И"},"Ильфатовна","И",9,9,62,null,62,120,"призер",null,"Джайнакова Татьяна Витальевна","МБОУ \"СОШ №1\" г. Мензелинска"]
[57,"МБОУ \"СОШ №1\"","Макаров","Илья",{"$f":"LEFT(D58)","v":"И"},"Максимович","М",9,9,61,null,61,120,"призер",null,"Секунова Ирина Сергеевна","МБОУ \"СОШ №1\" г. Мензелинска"]
[58,"МБОУ \"СОШ №2\" г. Мензелинска РТ","Вильданова","Айгуль",{"$f":"LEFT(D59)","v":"А"},"Ильдаровна","И",9,9,19,null,19,120,"участник",null,"Мифтахова Гульназ Халитовна","МБОУ \"СОШ №2\" г. Мензелинска"]
[59,"МБОУ \"СОШ №2\" г. Мензелинска РТ","Грядушкина","Виолетта",{"$f":"LEFT(D60)","v":"В"},"Алексеевна","А",9,9,44,null,44,120,"участник",null,"Мифтахова Гульназ Халитовна","МБОУ \"СОШ №2\" г. Мензелинска"]
[60,"МБОУ \"СОШ №3\"","Ханова","Аделя",{"$f":"LEFT(D61)","v":"А"},"Илгизовна","И",9,9,53,null,53,120,"участник",null,"Шамсуллина Наталья Георгиевна","МБОУ \"СОШ №3\" г. Мензелинска"]
[61,"ГАПОУ \"Мензелинский педагогический колледж имени Мусы Джалиля\"","Логинова","Карина",{"$f":"LEFT(D62)","v":"К"},"Алексеевна","А",9,9,45,null,45,120,"участник",null,"Котельникова Дарья Анатольевна","МПК"]
[62,"МБОУ \"Подгорнобайларская ООШ\"","Зайнуллина","Адиля",{"$f":"LEFT(D63)","v":"А"},"Маратовна","М",9,9,31,null,31,120,"участник",null,"Бадриев Марат Фаизович","МБОУ\"Подгорнобайларская ООШ\" Мензелинского муниципального района РТ"]
[63,"МБОУ \"Урусовская ООШ имени Р.Закирова\"","Ахметова","Айгуль",{"$f":"LEFT(D64)","v":"А"},"Расулевна","Р",9,9,10,null,10,120,"участник",null,"Талипова Танзиля Хамадулловна","МБОУ \"Урусовская ООШ имени Р.Закирова\""]
[64,"МБОУ \"СОШ №1\"","Казакова","Юлия",{"$f":"LEFT(D65)","v":"Ю"},"Андреевна","А",10,10,60,null,60,120,"призер",null,"Городова Людмила Георгиевна","МБОУ \"СОШ №1\" г. Мензелинска"]
[65,"МБОУ \"СОШ №1\"","Гайсина","Лениза",{"$f":"LEFT(D66)","v":"Л"},"Радиковна","Р",10,10,38,null,38,120,"участник",null,"Городова Людмила Георгиевна","МБОУ \"СОШ №1\" г. Мензелинска"]
[66,"МБОУ \"СОШ №2\" г. Мензелинска РТ","Гилемова","Айгуль",{"$f":"LEFT(D67)","v":"А"},"Фархадовна",{"$f":"LEFT(F67)","v":"Ф"},10,10,22,null,22,120,"участник",null,"Кириллова Виктория Валерьевна","МБОУ \"СОШ №2\" г. Мензелинска"]
[67,"МБОУ \"СОШ №3\"","Чугунова","Алина",{"$f":"LEFT(D68)","v":"А"},"Дмитриевна","Д",10,10,37,null,37,120,"участник",null,"Шамсуллина Наталья Георгиевна","МБОУ \"СОШ №3\" г. Мензелинска"]
[68,"МБОУ \"Гимназия\" г.Мензелинска РТ","Галиева","Камила",{"$f":"LEFT(D69)","v":"К"},"Ильнаровна","И",10,10,62,null,62,120,"призер",null,"Нуриева Гузель Флюровна","МБОУ \"Гимназия\" г.Мензелинска РТ"]
[69,"МБОУ \"СОШ №1\"","Газизянова","Альфия",{"$f":"LEFT(D70)","v":"А"},"Нафисовна","Н",11,11,36,null,36,120,"участник",null,"Гарифзянова Венера Флюсовна","МБОУ \"СОШ №1\" г. Мензелинска"]
[70,"МБОУ \"СОШ №2\" г. Мензелинска РТ","Симанова","Анна",{"$f":"LEFT(D71)","v":"А"},"Дмитриевна","Д",11,11,71,null,71,120,"призер",null,"Кириллова Виктория Валерьевна","МБОУ \"СОШ №2\" г. Мензелинска"]
[71,"МБОУ \"СОШ №3\"","Губайдуллин","Тимур",{"$f":"LEFT(D72)","v":"Т"},"Альбертович","А",11,11,61,null,61,120,"призер",null,"Шамсуллина Наталья Георгиевна","МБОУ \"СОШ №3\" г. Мензелинска"]

{"sheet":"data","index":1,"n_rows":25,"n_cols":10,"rows_kept":25}
[{"$nulls":6},"1 - Техника, технология и техническое творчество","2 - Культура дома, дизайн и технологии","3 - Робототехника","4 - Информационная безопасность"]
["1 - Техника, технологии и техническое творчество","1.1  Практика по ручной деревообработке",{"$nulls":4},"1.1 Практика по ручной деревообработке","2.1 Ручная обработка швейного изделия или узла","3.1 Робототехника","4.1 Не предусмотрена"]
["2 - Культура дома, дизайн и технологии","1.2 Практика по механической деревообработке",{"$nulls":4},"1.2 Практика по механической деревообработке","2.2 Механическая обработка швейного изделия или узла + Моделирование"]
["3 - Робототехника","1.3 Практика по ручной металлообработке",{"$nulls":4},"1.3 Практика по ручной металлообработке","2.3 Обработка швейного изделия или узла на швейно-вышивальном оборудовании + Моделирование"]
["4 - Информационная безопасность","1.4 Практика по механической металлообработке",{"$nulls":4},"1.4 Практика по механической металлообработке","2.4 3D-моделирование и печать"]
[null,"1.5 Электрорадиотехника",{"$nulls":4},"1.5 Электрорадиотехника","2.5 Практика по работе на лазерно-гравировальном станке"]
[null,"1.6 3D-моделирование и печать",{"$nulls":4},"1.6 3D-моделирование и печать","2.6 Промышленный дизайн"]
[null,"1.7 Практика по работе на лазерно-гравировальном станке",{"$nulls":4},"1.7 Практика по работе на лазерно-гравировальном станке"]
[null,"1.8 Промышленный дизайн",{"$nulls":4},"1.8 Промышленный дизайн"]
[null,"2.1 Ручная обработка швейного изделия или узла"]
[null,"2.2 Механическая обработка швейного изделия или узла + Моделирование"]
[null,"2.3 Обработка швейного изделия или узла на швейно-вышивальном оборудовании + Моделирование"]
[null,"2.4 3D-моделирование и печать"]
[null,"2.5 Практика по работе на лазерно-гравировальном станке"]
[null,"2.6 Промышленный дизайн"]
[null,"3.1 Робототехника"]
[null,"4.1 Не предусмотрена"]
[]
[]
[]
[]
[]
["участник"]
["призер",null,"да","да",null,"м"]
["победитель",null,null,"нет",null,"ж"]